[Event "12th WLC Weekend 2022"]
[Site "Eindhoven"]
[Date "2022.05.15"]
[Round "5.29"]
[White "Krueger, Andre"]
[Black "Kurt, Sascha"]
[Result "1-0"]
[ECO "A45"]
[WhiteElo "1970"]
[BlackElo "1751"]
[Annotator "TA"]
[PlyCount "119"]
[EventDate "2022.05.13"]
[EventType "swiss"]
[EventCountry "NED"]
[SourceTitle "playchess.com"]
[Source "ChessBase"]
[SourceQuality "1"]
[TimeControl "5400+30"]

{[%evp 9,119,16,13,13,6,13,37,36,49,45,50,11,46,39,55,42,45,44,63,57,61,41,46,13,37,37,37,37,64,56,72,57,57,50,50,52,73,75,74,35,46,4,43,4,4,4,4,4,4,4,4,4,4,4,4,4,4,4,4,11,4,4,11,4,4,4,4,4,4,4,4,4,4,4,29,29,29,4,4,4,4,0,4,4,4,4,4,3,3,3,28,28,856,669,5105,5069,4829,5065,4133,2053,29972,29973,29973,29973,29976,29978,29980,29978,29986,29987,29990,29990]} 1. d4 {[%emt 0:00:39]} Nf6 {[%emt 0:00:06]} 2. Bg5 {[%emt 0:00:51]} g6 {[%emt 0:00:58]} 3. Bxf6 {[%emt 0:00:17]} exf6 {[%emt 0:00:06]} 4. c4 {[%emt 0:00:07]} Bg7 {[%emt 0:00:54]} 5. Nc3 {[%emt 0:00:05]} O-O {[%emt 0:00:22]} 6. g3 {[%emt 0:00:11] A45: Trompowsky Attack.} d6 {[%emt 0:02:00]} 7. Bg2 {[%emt 0:00:09]} Nc6 {[%emt 0:00:50]} 8. e3 {[%emt 0:00:09] White is slightly better.} Bd7 {[%emt 0:02:07]} 9. Nge2 {[%emt 0:00:08] [#]} Na5 $146 {[%emt 0:01:21]} ({Predecessor:} 9... a6 10. O-O h5 11. Rb1 Rb8 12. b4 h4 13. b5 axb5 14. Rxb5 hxg3 15. hxg3 b6 {0-1 (43) Bureau,F (2194)-Mader,M (2047) Karlsruhe 2018}) 10. Qd3 {[%emt 0:00:49]} c5 {[%emt 0:02:27]} (10... Bf5 $5 {[%cal Rf5d3]} 11. Be4 Bxe4 12. Qxe4 Nxc4 $11) 11. Rd1 {[%emt 0:03:45]} Bc6 {[%emt 0:01:52]} 12. Nd5 {[%emt 0:17:05]} Bxd5 {[%emt 0:06:35]} 13. Bxd5 {[%emt 0:00:37]} Qc7 {[%emt 0:00:57]} 14. O-O {[%emt 0:04:40] White is more active.} Nc6 {[%emt 0:01:49]} 15. a3 {[%emt 0:05:32] Inhibits Nb4.} f5 {[%emt 0:04:56]} 16. Bxc6 {[%emt 0:01:34]} Qxc6 {[%emt 0:00:28]} 17. b3 {[%emt 0:00:37]} Rfe8 {[%emt 0:13:53]} 18. Rd2 {[%emt 0:03:38]} a5 {[%emt 0:06:30]} 19. a4 {[%emt 0:00:23]} Ra6 {[%emt 0:01:15]} 20. dxc5 {[%emt 0:04:49]} dxc5 {[%emt 0:00:17]} 21. Rfd1 {[%emt 0:02:31]} Be5 {[%emt 0:01:59]} 22. Qd7 {[%emt 0:02:22]} Qxd7 {[%emt 0:01:10]} 23. Rxd7 {[%emt 0:00:07]} Rb6 {[%emt 0:00:39]} 24. Rd8 {[%emt 0:04:09]} Rxd8 {[%emt 0:00:45]} 25. Rxd8+ $14 {[%emt 0:00:01][%mdl 4096] Endgame KRB-KRN} Kg7 {[%emt 0:00:11]} 26. Rd3 {[%emt 0:00:18]} (26. Rd5 $5 {[%cal Rd5e5]} Bd6 27. Kf1 $11) 26... Kf6 {[%emt 0:01:12]} 27. Kf1 {[%emt 0:00:29]} Ke6 {[%emt 0:00:41]} 28. Ke1 {[%emt 0:00:53]} Rd6 {[%emt 0:02:14]} 29. Kd2 {[%emt 0:02:17]} Rxd3+ {[%emt 0:00:35]} 30. Kxd3 $11 {[%emt 0:00:00] KB-KN} b6 {[%emt 0:00:34]} 31. Ng1 {[%emt 0:01:45]} h6 {[%emt 0:01:02]} 32. Nf3 {[%emt 0:00:45]} Kd6 {[%emt 0:01:08]} 33. Ke2 {[%emt 0:05:05]} Ke6 {[%emt 0:01:13]} 34. Ne1 {[%emt 0:03:07]} Kd6 {[%emt 0:00:17]} 35. Nd3 {[%emt 0:00:13]} Ke6 {[%emt 0:00:16]} 36. f3 {[%emt 0:00:10]} Bd6 {[%emt 0:01:03]} 37. Kf2 {[%emt 0:00:24]} Be5 {[%emt 0:00:25]} 38. h3 {[%emt 0:07:34]} Bd6 {[%emt 0:00:37]} 39. f4 {[%emt 0:00:26]} Bc7 {[%emt 0:02:24]} 40. Ne1 {[%emt 0:00:22]} Bd8 {[%emt 0:02:30]} 41. Nc2 {[%emt 0:00:46]} h5 {[%emt 0:00:41]} 42. Kf3 {[%emt 0:00:08]} Be7 {[%emt 0:00:31]} 43. Na3 {[%emt 0:01:33]} Bf6 {[%emt 0:00:56]} 44. Nb5 {[%emt 0:00:43]} Kd7 {[%emt 0:00:15]} 45. Na3 {[%emt 0:00:07]} Kc6 {[%emt 0:00:43]} 46. e4 {[%emt 0:00:10]} fxe4+ {[%emt 0:00:20]} 47. Kxe4 {[%emt 0:00:01]} Bg7 {[%emt 0:00:47]} 48. g4 {[%emt 0:00:07]} hxg4 {[%emt 0:00:15]} 49. hxg4 {[%emt 0:00:01]} Bf6 {[%emt 0:00:22]} (49... Bb2 $5 {[%cal Rb2a3]} 50. Nc2 Bc1 $11) 50. Nc2 {[%emt 0:00:56]} g5 $2 {[%emt 0:00:46][%mdl 8192] [#] Black cannot hold the game after this.} (50... Bc3 $11) 51. Kf5 $1 $18 {[%emt 0:00:53][%csl LRf6,LRg5]} Bd8 {[%emt 0:00:21]} 52. fxg5 {[%emt 0:00:10]} Kd6 {[%emt 0:00:10]} 53. Ne3 {[%emt 0:00:24]} Ke7 {[%emt 0:00:39]} 54. Nd5+ {[%emt 0:00:45]} (54. g6 $142 Kf8 55. gxf7 Kxf7 56. Nd5) 54... Kd6 {[%emt 0:00:18]} 55. g6 {[%emt 0:03:03] White mates.} fxg6+ {[%emt 0:00:05]} 56. Kxg6 {[%emt 0:00:08]} Ke6 {[%emt 0:00:15]} 57. g5 {[%emt 0:00:15][%cal Bg4g5,Bg5g6][%mdl 32]} Kd7 {[%emt 0:00:29]} 58. Kh6 {[%emt 0:00:34]} Ke8 {[%emt 0:00:07]} 59. g6 {[%emt 0:00:15]} Kf8 {[%emt 0:00:13]} 60. Kh7 {[%emt 0:00:08] Weighted Error Value: White=0.06 (flawless) /Black=0.22 (precise)} 1-0

[Event "12th WLC Weekend 2022"]
[Site "Eindhoven"]
[Date "2022.05.15"]
[Round "6.1"]
[White "Elgersma, Onno"]
[Black "Roebers, Eline"]
[Result "1/2-1/2"]
[ECO "B31"]
[WhiteElo "2303"]
[BlackElo "2369"]
[Annotator "TA"]
[PlyCount "95"]
[EventDate "2022.05.13"]
[EventType "swiss"]
[EventCountry "NED"]
[SourceTitle "playchess.com"]
[Source "ChessBase"]
[SourceQuality "1"]
[TimeControl "5400+30"]

{[%evp 14,95,21,16,16,14,23,13,8,13,6,9,17,0,2,-14,-14,-31,-26,-30,-4,-4,0,0,0,4,50,33,40,47,54,49,42,29,79,62,46,66,94,87,83,31,32,27,55,52,106,87,164,110,63,93,120,114,150,78,311,178,165,108,119,106,116,45,51,45,51,20,56,5,4,0,0,0,0,0,0,0,0,0,0,0,0,0]} 1. e4 {[%emt 0:00:04]} c5 {[%emt 0:00:04]} 2. Nf3 {[%emt 0:00:10]} Nc6 {[%emt 0:00:02]} 3. Bb5 {[%emt 0:00:33]} g6 {[%emt 0:00:04]} 4. O-O {[%emt 0:00:26]} Bg7 {[%emt 0:00:01]} 5. Re1 {[%emt 0:00:33]} e5 {[%emt 0:00:43]} 6. Bxc6 {[%emt 0:00:31]} dxc6 {[%emt 0:02:53]} 7. d3 {[%emt 0:00:16]} Qe7 {[%emt 0:01:10]} 8. a3 {[%emt 0:03:54]} Nf6 $1 {[%emt 0:05:06][%cal Bg8f6,Bf6h5,Bh5f4][%mdl 32] 8...Nf6 scores better than 8...a5. B31: Sicilian: 2...Nc6 3 Bb5 g6.} 9. Nbd2 {[%emt 0:04:12]} O-O {[%emt 0:07:10]} 10. h3 {[%emt 0:04:55]} Nh5 {[%emt 0:06:47]} 11. Nc4 {[%emt 0:03:35]} f6 {[%emt 0:09:25]} 12. Be3 {[%emt 0:07:29][%cal Ob2b4]} Be6 {[%emt 0:01:19] [#]} 13. Nfd2 $146 {[%emt 0:01:38]} ({Predecessor:} 13. Qd2 Bxc4 14. dxc4 Rfd8 15. Qe2 Bf8 16. Rad1 Ng7 17. Rxd8 Rxd8 18. Rd1 Rxd1+ 19. Qxd1 {½-½ (33) Pessoa,F (2497)-Mignon,F (2433) ICCF email 2018}) 13... b6 {[%emt 0:07:44]} 14. a4 {[%emt 0:20:31]} Rad8 {[%emt 0:06:26]} 15. Qe2 {[%emt 0:09:22]} Nf4 {[%emt 0:03:42]} 16. Qf1 {[%emt 0:11:47]} g5 {[%emt 0:08:26]} 17. Nb3 {[%emt 0:07:23]} g4 {[%emt 0:17:26]} 18. hxg4 {[%emt 0:03:16]} Bxg4 {[%emt 0:00:18]} 19. a5 {[%emt 0:03:20]} Bh6 {[%emt 0:03:42]} (19... f5 $11) 20. axb6 {[%emt 0:02:15]} axb6 {[%emt 0:00:06]} 21. Bxf4 {[%emt 0:03:37]} Bxf4 {[%emt 0:03:33]} 22. g3 {[%emt 0:01:04]} Kh8 {[%emt 0:09:45][%cal Of8g8]} 23. Ne3 {[%emt 0:01:06]} (23. gxf4 Rg8 24. Ne3 Be2+ 25. Qg2 Bf3 $19) 23... Rg8 {[%emt 0:03:32]} 24. Nxg4 $16 {[%emt 0:02:04]} Rxg4 {[%emt 0:00:04]} 25. Qh3 {[%emt 0:00:48]} Rg7 {[%emt 0:01:40]} 26. Nc1 {[%emt 0:01:50]} c4 {[%emt 0:01:11]} 27. Ne2 {[%emt 0:00:49]} ({White should play} 27. dxc4 $16 Qb4 28. Nd3 Qxc4 29. Re2 (29. Nxf4 exf4 30. g4 Qxc2 $17)) 27... cxd3 $14 {[%emt 0:00:41]} 28. cxd3 {[%emt 0:00:01][%cal Od3d4]} Qc5 {[%emt 0:00:52]} 29. d4 {[%emt 0:03:36]} ({Not} 29. Nxf4 exf4 30. b4 Qxb4 $17) 29... Qe7 {[%emt 0:00:29]} (29... Qb5 $14) 30. Red1 $16 {[%emt 0:00:50]} ({Stronger than} 30. Nxf4 exf4 31. g4 Qd7 $17) 30... Bg5 {[%emt 0:00:30] [#]} (30... Rdg8 $16) 31. d5 {[%emt 0:01:01]} (31. dxe5 $1 $18 {Hoping for Rxd8+.} fxe5 32. Rxd8+ Qxd8 33. Qe6) 31... cxd5 {[%emt 0:00:31]} 32. Rxd5 {[%emt 0:00:22]} Rxd5 {[%emt 0:00:29]} 33. exd5 {[%emt 0:00:06]} Qb7 {[%emt 0:00:33] Prevents Ra8+.} 34. Rd1 {[%emt 0:01:25]} (34. Nc3 $142) 34... e4 $2 {[%emt 0:00:27]} (34... Qd7 $16 {was necessary.} 35. Qe6 h5) 35. d6 {[%emt 0:00:39]} (35. Qf5 $142) 35... Qd7 $18 {[%emt 0:00:26] [#]} 36. Qxd7 {[%emt 0:00:36]} (36. Kg2 $1 $18) 36... Rxd7 {[%emt 0:00:03][%mdl 4096] Endgame KRB-KRN} 37. Nc3 {[%emt 0:00:18]} f5 {[%emt 0:00:48]} 38. Nb5 {[%emt 0:00:13]} (38. Rd5 $16) 38... Kg7 $14 {[%emt 0:00:32]} 39. Rd5 {[%emt 0:01:19]} Kg6 {[%emt 0:00:33]} 40. Kf1 {[%emt 0:00:52]} f4 {[%emt 0:00:24]} 41. Nc7 {[%emt 0:01:02]} ({White should try} 41. Nc3 $14) 41... fxg3 $11 {[%emt 0:00:25] The position is equal.} 42. Ne6 {[%emt 0:00:33]} Bh6 {[%emt 0:00:04] Prevents Nf8+.} 43. fxg3 {[%emt 0:00:11]} Kf6 {[%emt 0:00:52]} 44. Nd4 {[%emt 0:00:36]} Be3 {[%emt 0:00:43]} 45. Ke2 {[%emt 0:00:56]} Bxd4 {[%emt 0:00:21]} 46. Rxd4 {[%emt 0:00:02]} Ke5 {[%emt 0:00:05][%csl LRd4,LRd6]} 47. Ke3 {[%emt 0:00:04]} Rxd6 {[%emt 0:00:07]} 48. Rxe4+ {[%emt 0:00:20] Weighted Error Value: White=0.18 (very precise) /Black=0.27 (precise)} 1/2-1/2

[Event "12th WLC Weekend 2022"]
[Site "Eindhoven"]
[Date "2022.05.15"]
[Round "6.2"]
[White "Beerdsen, Thomas"]
[Black "Baselmans, Sam"]
[Result "1/2-1/2"]
[ECO "C30"]
[WhiteElo "2497"]
[BlackElo "2175"]
[Annotator "TA"]
[PlyCount "76"]
[EventDate "2022.05.13"]
[EventType "swiss"]
[EventCountry "NED"]
[SourceTitle "playchess.com"]
[Source "ChessBase"]
[SourceQuality "1"]
[TimeControl "5400+30"]

{[%evp 10,76,0,0,27,0,13,19,13,8,14,24,18,6,33,30,29,21,23,-29,19,26,32,53,76,67,66,50,176,85,82,80,199,69,64,32,30,36,23,31,49,17,99,111,225,4,8,8,8,8,8,8,8,8,7,8,8,0,0,-65,0,0,0,0,0,0,0,0,0]} 1. e4 {[%emt 0:00:03]} e5 {[%emt 0:00:07]} 2. Bc4 {[%emt 0:00:05]} Nf6 {[%emt 0:00:53]} 3. d3 {[%emt 0:00:06]} Bc5 {[%emt 0:00:30]} 4. Nc3 {[%emt 0:01:04]} Nc6 {[%emt 0:01:32]} 5. f4 {[%emt 0:00:10]} d6 {[%emt 0:00:11]} 6. Nf3 {[%emt 0:01:38]} a5 {[%emt 0:00:48] [#] 6...a6 is the modern continuation. C30: King's Gambit Declined.} 7. f5 $146 {[%emt 0:02:54]} ({Predecessor:} 7. fxe5 dxe5 8. Bg5 h6 9. Bh4 Bg4 10. Bb5 Qd6 11. h3 Bd7 12. Qe2 Nd4 13. Nxd4 Bxd4 14. Bxd7+ Nxd7 {0-1 (62) Mekhitarian,K (2562)-Sadhwani,R (2616) Chess.com INT 2022}) 7... h6 {[%emt 0:01:15]} 8. a3 {[%emt 0:09:05]} Nd4 {[%emt 0:01:24]} 9. Nxd4 {[%emt 0:03:16]} Bxd4 {[%emt 0:03:26]} 10. Qf3 {[%emt 0:09:38]} c6 {[%emt 0:02:10]} 11. Ne2 {[%emt 0:10:40]} Ba7 {[%emt 0:02:17]} 12. Ba2 {[%emt 0:01:17]} b5 {[%emt 0:10:32]} 13. g4 {[%emt 0:07:30][%cal Bg2g4,Bg4g5][%mdl 32]} d5 {[%emt 0:06:10]} 14. Bd2 {[%emt 0:04:16]} ({Better is} 14. h4) 14... Bb7 {[%emt 0:03:06]} (14... b4 $1 {deserves consideration.}) 15. O-O-O {[%emt 0:08:21]} Qc7 {[%emt 0:01:35]} 16. h4 {[%emt 0:05:55]} dxe4 {[%emt 0:01:57]} 17. dxe4 {[%emt 0:00:19]} O-O-O {[%emt 0:00:22]} 18. g5 {[%emt 0:00:53]} Ne8 {[%emt 0:13:04]} (18... hxg5 $14 19. hxg5 Rxh1 20. Rxh1 Ne8) 19. Be3 {[%emt 0:04:10]} (19. gxh6 $18 {and White stays clearly on top. Hoping for Bg5.} gxh6 20. f6) 19... Bxe3+ $16 {[%emt 0:02:44]} 20. Qxe3 {[%emt 0:00:36] Strongly threatening Rxd8+.} Nd6 {[%emt 0:00:39] [#]} (20... hxg5 $16 {was necessary.} 21. Rxd8+ (21. Qxg5 f6 $11) (21. hxg5 Rxh1 22. Rxh1 Kb8 $14) 21... Qxd8) 21. Nc3 {[%emt 0:01:18]} ({White should try} 21. g6 $1 $18) 21... Kb8 $14 {[%emt 0:00:29] Prevents Qa7+.} 22. Rhg1 {[%emt 0:04:09] White is more active.} hxg5 {[%emt 0:01:54]} 23. hxg5 {[%emt 0:04:28]} Rh4 {[%emt 0:02:52]} 24. b4 {[%emt 0:01:00]} Bc8 {[%emt 0:04:01]} 25. Rd3 {[%emt 0:03:56]} (25. Kb2 {seems wilder.} g6 26. bxa5 gxf5 27. g6) 25... Nb7 {[%emt 0:05:41]} (25... g6 $11) 26. Rxd8 $16 {[%emt 0:02:02]} Qxd8 {[%emt 0:00:17]} (26... Nxd8 $16 27. bxa5 g6) 27. Bb3 $2 {[%emt 0:05:11]} (27. Bxf7 $18 {[%cal Of5f6] f6! is the strong threat.} Qf8 28. Qg3) 27... axb4 {[%emt 0:05:13]} 28. axb4 {[%emt 0:00:06]} Qd4 {[%emt 0:00:20]} 29. Qxd4 {[%emt 0:02:48]} exd4 {[%emt 0:00:06] [#]} 30. Bxf7 $1 {[%emt 0:02:13]} dxc3 {[%emt 0:03:32]} 31. f6 {[%emt 0:00:14]} g6 {[%emt 0:00:56]} (31... gxf6 $2 32. g6 Nd6 33. g7 Nxf7 34. g8=Q $18) 32. Bxg6 {[%emt 0:00:19] aiming for Bf5.} Nd6 {[%emt 0:02:26] Against Bf5} 33. e5 {[%emt 0:02:31]} Nc4 {[%emt 0:00:36]} 34. Bh5 {[%emt 0:03:05]} (34. f7 $11 Rf4 35. Bh5 Nxe5 36. g6 Nxg6 37. Bxg6) 34... Nxe5 {[%emt 0:00:49]} (34... Rxh5 $15 35. f7 Rh8) 35. f7 $11 {[%emt 0:00:17] The position is equal.} Rf4 {[%emt 0:00:23]} 36. g6 {[%emt 0:00:09]} Nxg6 {[%emt 0:00:45]} 37. Bxg6 {[%emt 0:00:57]} Be6 {[%emt 0:00:12]} 38. Kd1 {[%emt 0:01:22]} Bxf7 {[%emt 0:01:02] Weighted Error Value: White=0.32/Black=0.26 (precise)} 1/2-1/2

[Event "12th WLC Weekend 2022"]
[Site "Eindhoven"]
[Date "2022.05.15"]
[Round "6.3"]
[White "Baselmans, Luuk"]
[Black "Jansen, Bob"]
[Result "1-0"]
[ECO "B04"]
[WhiteElo "2233"]
[BlackElo "2174"]
[Annotator "TA"]
[PlyCount "65"]
[EventDate "2022.05.13"]
[EventType "swiss"]
[EventCountry "NED"]
[SourceTitle "playchess.com"]
[Source "ChessBase"]
[SourceQuality "1"]
[TimeControl "5400+30"]

{[%evp 16,65,41,46,45,0,0,-45,-32,-64,-45,-73,-76,-79,-35,-27,-26,-47,-31,-97,0,0,0,0,0,0,81,0,22,14,104,98,166,170,322,319,282,143,146,129,147,49,160,165,168,152,329,80,29995,29996,29996,29997]} 1. e4 {[%emt 0:00:03][%cal Be2e4,Be4e5][%mdl 32]} Nf6 {[%emt 0:17:15]} 2. e5 {[%emt 0:00:20]} Nd5 {[%emt 0:00:02]} 3. d4 {[%emt 0:00:13]} d6 {[%emt 0:00:01]} 4. Nf3 {[%emt 0:00:08]} g6 {[%emt 0:00:02]} 5. Bc4 {[%emt 0:00:36]} Nb6 {[%emt 0:00:01]} 6. Bb3 {[%emt 0:00:10]} Bg7 {[%emt 0:00:02]} 7. Ng5 {[%emt 0:00:22]} e6 {[%emt 0:00:02] 7...e6 is better than 7...d5.} 8. Qf3 {[%emt 0:00:17]} Qe7 {[%emt 0:00:02]} 9. Ne4 $1 {[%emt 0:00:27]} h6 {[%emt 0:00:19] Against Bg5. B04: Alekhine's Defence: 4 Nf3.} 10. Nf6+ {[%emt 0:09:40]} Kf8 {[%emt 0:07:55]} 11. Be3 {[%emt 0:01:54]} Nc6 {[%emt 0:03:51] Black is slightly better.} 12. Ne4 {[%emt 0:00:35]} dxe5 {[%emt 0:04:26] [#]} 13. dxe5 $146 {[%emt 0:00:17]} ({Predecessor:} 13. d5 Nd4 14. Bxd4 exd4 15. dxe6 Bxe6 16. Bxe6 Qxe6 17. Nbd2 Kg8 18. O-O Qc6 19. Nb3 {0-1 (29) Uehara,S (1987)-Janev,E (2497) Cappelle la Grande 2011}) 13... Nxe5 {[%emt 0:00:52]} 14. Qg3 {[%emt 0:00:22] aiming for Bc5.} Nbd7 {[%emt 0:01:26] Against Bc5} (14... Ned7 $5 {[%cal Rg7b2]} 15. Nbc3 Nd5 $15) 15. Nbc3 {[%emt 0:04:07]} f5 {[%emt 0:13:36]} 16. Nd2 {[%emt 0:01:00]} Ng4 {[%emt 0:09:22]} 17. O-O-O {[%emt 0:08:23]} (17. h3 $15 Nxe3 18. Qxe3) 17... Nxe3 {[%emt 0:14:34]} (17... Bxc3 $17 18. bxc3 e5) 18. Qxe3 $11 {[%emt 0:04:58]} Nc5 {[%emt 0:05:55]} 19. Rhe1 {[%emt 0:02:02][%cal Oc3d5] Hoping for Nd5!} Bf6 {[%emt 0:02:29]} 20. Nf3 {[%emt 0:02:10]} Kg7 {[%emt 0:05:40] [#]} (20... a5 $11 {keeps the balance.}) 21. Ne5 {[%emt 0:09:44]} (21. Nd5 $1 $16 {[%cal Rd5e7]} exd5 22. Qxe7+ Bxe7 23. Rxe7+ Kf6 24. Rxc7) 21... Re8 {[%emt 0:01:18]} (21... b6 $5 {[%cal Rc8b7]}) 22. f4 {[%emt 0:02:49]} Nd7 {[%emt 0:03:47]} (22... c6 $11) 23. Nxg6 $1 $16 {[%emt 0:06:05] 0x0.001df4f2a3f9dp-1022s more active pieces. Pair of Knights!} Qf7 {[%emt 0:03:11]} (23... Kxg6 $16 24. Qg3+ Kf7) 24. Nb5 $18 {[%emt 0:06:44]} (24. Ne5 $2 Nxe5 25. h3 (25. fxe5 $2 Bg5 $19) 25... Ng6 $19) 24... Kxg6 $2 {[%emt 0:02:00]} (24... Qxg6 25. Nxc7 Nb6) 25. Nxc7 {[%emt 0:00:36]} Nb6 {[%emt 0:01:52]} 26. Nxa8 {[%emt 0:00:22]} ({White must play} 26. Nxe8 $18 Qxe8 27. c3 (27. Bxe6 Bxe6 28. Qxe6 Qxe6 $16)) 26... Nxa8 $16 {[%emt 0:00:01] [#]} 27. g4 $1 {[%emt 0:01:08]} ({Much less strong is} 27. Qxa7 Nc7 $14) 27... fxg4 {[%emt 0:01:21] [#]} 28. f5+ {[%emt 0:00:37]} (28. Rg1 $1 $16 {[%cal Rg1g4]} Kh7 29. Rxg4) 28... Kxf5 {[%emt 0:01:35]} ({Black should play} 28... Kg7 $14 29. fxe6 Qe7) 29. Qe4+ {[%emt 0:02:21]} ({Weaker is} 29. Qxa7 Nc7 $11) 29... Kg5 {[%emt 0:00:02]} 30. Kb1 $40 {[%emt 0:04:29][%cal Oh2h3][%mdl 128] And now h3! would win. White wants a kill. Really sharp!} Nb6 $2 {[%emt 0:01:18]} (30... Qh5 $2 31. Rg1 Rf8 32. Bxe6 Bxe6 33. h4+ Qxh4 34. Qxe6 $18) (30... h5 $16) 31. h4+ $2 {[%emt 0:00:13]} (31. h3 $18 {[%csl Gh3][%cal Re4g4]} h5 32. hxg4 (32. Rf1 Qg7 $16)) 31... Kxh4 {[%emt 0:01:05][%mdl 8192]} (31... Kh5 $16) 32. Rh1+ {[%emt 0:00:23]} Kg5 {[%emt 0:00:02]} 33. Qe3+ {[%emt 0:00:10] Weighted Error Value: White=0.35/Black=0.70} 1-0

[Event "12th WLC Weekend 2022"]
[Site "Eindhoven"]
[Date "2022.05.15"]
[Round "6.4"]
[White "Coenen, Eduard"]
[Black "Grooten, Herman"]
[Result "1-0"]
[ECO "A48"]
[WhiteElo "2030"]
[BlackElo "2286"]
[Annotator "TA"]
[PlyCount "109"]
[EventDate "2022.05.13"]
[EventType "swiss"]
[EventCountry "NED"]
[SourceTitle "playchess.com"]
[Source "ChessBase"]
[SourceQuality "1"]
[TimeControl "5400+30"]

{[%evp 12,109,28,19,16,-5,0,-11,-18,-16,-9,-62,-50,-74,-80,-73,-56,-97,-75,-76,-59,-94,-84,-81,-63,-80,-74,-79,-60,-89,-52,-55,-41,-116,-121,-99,-27,-36,0,-100,-41,-16,0,-11,-8,0,0,0,39,18,22,14,16,30,15,23,36,39,173,179,179,161,306,313,556,268,258,266,280,254,257,265,340,336,360,330,400,406,406,391,408,408,480,479,482,473,465,420,592,590,575,568,589,560,759,677,681,665,610,589]} 1. d4 {[%emt 0:00:47]} Nf6 {[%emt 0:00:07][%cal Bg8f6,Bf6d7,Bd7c5][%mdl 32]} 2. c3 {[%emt 0:00:07]} g6 {[%emt 0:03:33]} 3. Bf4 {[%emt 0:00:17]} Bg7 {[%emt 0:00:11]} 4. e3 {[%emt 0:00:15]} d6 {[%emt 0:00:17]} 5. h3 {[%emt 0:00:25]} O-O {[%emt 0:00:24]} 6. Nf3 {[%emt 0:00:16]} Nfd7 {[%emt 0:00:35]} 7. Be2 {[%emt 0:00:43]} e5 {[%emt 0:02:55] A48: 1 d4 Nf6 2 Nf3 g6: Torre, London and Colle Systems.} 8. dxe5 {[%emt 0:01:18]} dxe5 {[%emt 0:00:22]} 9. Bh2 {[%emt 0:00:12]} Qe7 {[%emt 0:00:36] The position is equal.} 10. O-O {[%emt 0:00:40]} a5 {[%emt 0:02:01] [#]} 11. Na3 $146 {[%emt 0:03:00]} (11. Nbd2 $11) ({Predecessor:} 11. a4 Nc5 12. e4 Nxe4 13. Qd5 Nc5 14. b4 Ncd7 15. b5 Nb6 16. Qe4 N8d7 17. Qe3 {0-1 (44) Lenninger,R (1914)-Bryzgalin,K (2435) Bregenz 2018}) 11... Nc5 $15 {[%emt 0:01:43]} 12. Qc1 {[%emt 0:04:17][%cal Oe3e4]} Bf5 {[%emt 0:02:19]} 13. Rd1 {[%emt 0:02:09]} Nc6 {[%emt 0:03:16]} 14. Bb5 {[%emt 0:03:55]} Na7 {[%emt 0:03:18]} 15. Bf1 {[%emt 0:05:06]} Rfd8 {[%emt 0:03:02]} 16. Ne1 {[%emt 0:07:21]} h5 {[%emt 0:06:14]} 17. Nc4 {[%emt 0:06:13]} Nc6 {[%emt 0:02:53]} 18. Rxd8+ {[%emt 0:11:43]} Rxd8 {[%emt 0:01:06]} 19. Nd2 {[%emt 0:01:49]} Kh7 {[%emt 0:16:05]} 20. Bb5 {[%emt 0:04:16]} Na7 {[%emt 0:01:22]} 21. Bf1 {[%emt 0:01:00]} a4 {[%emt 0:02:47]} 22. e4 {[%emt 0:02:26] [#]} (22. Nef3 $15) 22... Bxh3 $1 $17 {[%emt 0:07:05][%cal Og7h6][%mdl 512] Strongly threatening ...Bh6!} 23. b4 {[%emt 0:04:44] [#]} Bh6 {[%emt 0:06:28]} (23... axb3 $1 $17 {[%cal Og7h6] Hoping for ...Bh6!} 24. axb3 (24. Nxb3 Be6) 24... Nc6 $1 25. gxh3 Qg5+ 26. Bg2 Qxd2 27. Qxd2 Rxd2) 24. f4 $1 $11 {[%emt 0:09:17]} exf4 {[%emt 0:18:15]} 25. Ndf3 {[%emt 0:05:15] [#]} (25. bxc5 $11 {remains equal.} Bg4 26. Ndf3) 25... Bc8 {[%emt 0:04:26]} 26. bxc5 $15 {[%emt 0:00:57]} Qxe4 {[%emt 0:01:16]} 27. Kh1 {[%emt 0:06:55]} Nc6 {[%emt 0:00:33]} 28. Qc2 {[%emt 0:01:30]} Qe7 {[%emt 0:02:39]} 29. Bg1 {[%emt 0:02:25][%cal Bh2g1,Bg1f2,Bf2h4][%mdl 32]} (29. Qxa4 g5 $14) 29... Bf5 {[%emt 0:01:24]} 30. Qxa4 {[%emt 0:00:22]} g5 {[%emt 0:00:24][%cal Bg6g5,Bg5g4][%mdl 32]} 31. Bf2 {[%emt 0:05:54]} g4 {[%emt 0:02:32]} 32. Bh4 {[%emt 0:00:28]} f6 {[%emt 0:00:12]} 33. Nd4 {[%emt 0:00:43]} Be4 {[%emt 0:02:54]} 34. Bd3 {[%emt 0:00:46] Nxc6 is the strong threat.} Bxd3 {[%emt 0:00:48] A mistake that costs the game.} (34... Nxd4 $1 $14 35. Bxe4+ (35. cxd4 Bg5 $14) 35... Qxe4 36. Bxf6 Rf8 37. Qxd4 Qe2) 35. Nxd3 $18 {[%emt 0:00:04]} Nxd4 {[%emt 0:00:56]} 36. cxd4 {[%emt 0:00:25][%cal Od3e5]} Qe3 {[%emt 0:00:50] Prevents Ne5.} (36... Qe4 $142) 37. Qc2 $1 {[%emt 0:00:56]} (37. Bxf6 f3 $1 38. Qc2 (38. Bxd8 {gets mated.} fxg2+ 39. Kxg2 Qf3+ 40. Kh2 Qh3+ 41. Kg1 Be3+ 42. Nf2 Qg3+ 43. Kh1 Qf3+ 44. Kh2 Qxf2+ 45. Kh1 Qf3+ 46. Kh2 Qh3#) 38... fxg2+ 39. Qxg2 Rf8 $11) 37... Rxd4 $2 {[%emt 0:01:02] [#]} (37... Qe4 {was necessary.} 38. Re1 Qf5 39. Re7+ Kg8 40. Qb3+ (40. Rxc7 Rxd4 41. Qb3+ Qd5 $18) 40... Qd5 41. Qxd5+ Rxd5 42. Bxf6 Rf5) 38. Nxf4+ {[%emt 0:02:14]} (38. c6 $142 $1 Qxd3 39. Qxd3+ Rxd3 40. cxb7) 38... Qe4 {[%emt 0:01:16]} 39. Qxe4+ {[%emt 0:00:16]} Rxe4 {[%emt 0:00:01]} 40. Nxh5 {[%emt 0:00:25][%cal Bf4h5,Bh5f6,Bf6d7,Bd7b6][%mdl 32]} Kg6 {[%emt 0:00:58]} 41. Nxf6 {[%emt 0:01:02]} Rc4 {[%emt 0:00:46]} 42. Nd7 {[%emt 0:00:39]} Bg7 {[%emt 0:00:21] Against Ne5+} 43. Re1 {[%emt 0:00:32]} Kf5 {[%emt 0:00:21]} 44. Bg3 {[%emt 0:00:57]} c6 {[%emt 0:00:06]} 45. Kh2 {[%emt 0:01:12]} Ra4 {[%emt 0:00:49]} 46. Re2 {[%emt 0:00:17]} Ra8 {[%emt 0:00:26]} 47. Nb6 {[%emt 0:00:19]} Rh8+ {[%emt 0:00:48]} 48. Kg1 {[%emt 0:00:12]} Bd4+ {[%emt 0:00:14]} 49. Bf2 {[%emt 0:00:03]} Be5 {[%emt 0:00:03]} (49... Bxf2+ {might work better.} 50. Rxf2+ Ke4) 50. g3 {[%emt 0:01:08] White is clearly winning.} Rd8 {[%emt 0:00:24]} 51. Kg2 {[%emt 0:00:12]} Rd3 {[%emt 0:00:12]} 52. Nc4 {[%emt 0:00:14]} Bb8 {[%emt 0:00:34]} 53. Rd2 {[%emt 0:00:13]} Rc3 {[%emt 0:02:03]} 54. Nd6+ {[%emt 0:00:22]} Ke6 {[%emt 0:00:04]} 55. Nxb7 {[%emt 0:01:07] Weighted Error Value: White=0.21 (precise) /Black=0.35} 1-0